[Event "AZE-ch Women 2019"]
[Site "Baku"]
[Date "2019.02.07"]
[Round "4.7"]
[White "Soyunlu, Narmin"]
[Black "Babayeva, Samira"]
[Result "1-0"]
[ECO "B12"]
[WhiteElo "2029"]
[BlackElo "1773"]
[Annotator "NA RC"]
[PlyCount "53"]
[EventDate "2019.02.04"]
[EventType "swiss"]
[EventCountry "AZE"]
[SourceTitle "playchess.com"]
[Source "ChessBase"]
[SourceQuality "1"]
[TimeControl "40/5400+30:1800+30"]

{[%evp 11,53,57,89,70,62,57,91,77,202,163,161,168,204,224,194,235,231,232,726,310,287,32767,322,343,310,352,364,375,946,1005,32767,975,1143,1200,1502,32767,1628,3283,1674,2297,5693,4670,3206,7185]} 1. e4 {[%emt 0:07:50]} c6 {[%emt 0:00:00]} 2. d4 {[%emt 0:00:15]} d6 {[%emt 0:00:00]} 3. Nc3 {[%emt 0:00:04]} Qc7 {[%emt 0:00:00]} 4. f4 {[%emt 0:00:27]} g6 {[%emt 0:00:09]} 5. Nf3 {[%emt 0:00:08]} Bg7 {[%emt 0:00:07]} 6. Be3 {[%emt 0:01:10]} b5 {[%emt 0:02:43]} 7. a3 {[%emt 0:03:09]} Nd7 {[%emt 0:02:23]} 8. Be2 {[%emt 0:02:13]} e5 {[%emt 0:01:18]} 9. O-O {[%emt 0:02:23]} Ngf6 {[%emt 0:00:35]} (9... Ne7 $16) 10. dxe5 {[%emt 0:11:12]} dxe5 {[%emt 0:02:05]} 11. Nxe5 {[%emt 0:02:07]} Nxe5 {[%emt 0:06:29]} 12. fxe5 {[%emt 0:00:07]} Qxe5 {[%emt 0:01:29]} 13. Bd4 {[%emt 0:12:13]} Qe6 {[%emt 0:03:21]} 14. Nxb5 $1 {[%emt 0:06:28]} Qe7 $2 {[%emt 0:11:43]} (14... cxb5 15. Bxb5+ Bd7 16. Bxd7+ Qxd7) 15. Bxf6 {[%emt 0:08:09]} (15. e5 $142 O-O 16. exf6 Bxf6 17. Bxf6 Qe3+ 18. Rf2 cxb5 19. Bd4) 15... Bxf6 {[%emt 0:00:07] [#]} 16. Rxf6 $1 {[%emt 0:00:54]} Qxf6 {[%emt 0:03:28]} 17. Nc7+ {[%emt 0:00:40] Double Attack} Ke7 {[%emt 0:00:32]} 18. Nxa8 {[%emt 0:00:24]} Rd8 {[%emt 0:00:43]} 19. Qe1 {[%emt 0:02:37]} Bb7 $2 {[%emt 0:00:23]} (19... Qe5 20. Qf2 Qd4 21. Qxd4 Rxd4) 20. Qb4+ {[%emt 0:01:09] Double Attack} Qd6 {[%emt 0:01:37]} 21. Qxb7+ {[%emt 0:00:26] Double Attack} Kf8 {[%emt 0:00:07]} 22. Qxa7 {[%emt 0:02:08]} c5 {[%emt 0:00:36]} 23. Rd1 {[%emt 0:00:21]} Qf6 {[%emt 0:00:27]} 24. Qxc5+ {[%emt 0:00:13]} Kg7 {[%emt 0:00:04]} 25. Rxd8 {[%emt 0:00:11]} Qxd8 {[%emt 0:00:07]} 26. Qc3+ {[%emt 0:00:19]} Kg8 {[%emt 0:00:13]} 27. Nc7 $18 {[%emt 0:00:07]} 1-0

[Event "AZE-ch Women 2019"]
[Site "Baku"]
[Date "2019.02.07"]
[Round "4.8"]
[White "Heydarova, Aytaj"]
[Black "Babazade, Zhala"]
[Result "1/2-1/2"]
[ECO "A05"]
[WhiteElo "1747"]
[BlackElo "1823"]
[Annotator "NA"]
[PlyCount "115"]
[EventDate "2019.02.04"]
[EventType "swiss"]
[EventCountry "AZE"]
[SourceTitle "playchess.com"]
[Source "ChessBase"]
[SourceQuality "1"]
[TimeControl "40/5400+30:1800+30"]

{[%evp 8,115,0,0,22,8,32,26,56,36,35,21,41,33,101,43,35,8,32,-4,9,-1,13,-10,32767,32767,27,8,28,35,43,32767,38,28,39,8,27,-46,-9,32767,0,0,158,161,137,165,138,127,177,134,143,138,176,177,183,180,199,189,140,134,108,138,127,86,167,159,151,32767,150,178,247,258,384,164,231,0,252,32767,164,143,152,122,123,125,138,89,142,32767,140,114,169,170,173,171,202,60,32767,59,73,35,32767,-31,-29,-77,0,0,16,0,0,-1287]} 1. Nf3 {[%emt 0:00:00]} Nf6 {[%emt 0:00:14]} 2. g3 {[%emt 0:00:00]} g6 {[%emt 0:00:06]} 3. Bg2 {[%emt 0:00:00]} Bg7 {[%emt 0:00:04]} 4. d3 {[%emt 0:01:21]} d6 {[%emt 0:02:39]} 5. O-O {[%emt 0:00:09]} c6 {[%emt 0:01:22]} 6. c4 {[%emt 0:01:05]} Bd7 {[%emt 0:01:41]} 7. Nc3 {[%emt 0:00:43]} Qc8 {[%emt 0:00:41]} 8. Re1 {[%emt 0:01:50]} O-O {[%emt 0:01:30]} 9. Rb1 {[%emt 0:00:19]} h6 {[%emt 0:01:09]} 10. b4 {[%emt 0:03:05]} a6 {[%emt 0:01:59] [#]} ({Black should try} 10... Na6 $14) 11. Bb2 {[%emt 0:00:21]} (11. Na4 $1 $16 {[%cal Ra4b6]} Qd8 12. Be3) 11... Bh3 {[%emt 0:05:35]} 12. Bh1 {[%emt 0:01:28]} Nbd7 {[%emt 0:09:06]} 13. Qb3 {[%emt 0:09:12]} e5 {[%emt 0:04:49]} 14. Nd2 {[%emt 0:03:23]} Be6 {[%emt 0:02:30]} 15. a4 {[%emt 0:06:22]} Ne8 {[%emt 0:00:39]} 16. Ba3 {[%emt 0:04:55]} f5 {[%emt 0:05:57]} 17. Bg2 {[%emt 0:14:03]} Rb8 {[%emt 0:03:14]} 18. Rec1 {[%emt 0:05:35]} g5 {[%emt 0:05:08]} 19. Qd1 {[%emt 0:03:33]} Qd8 {[%emt 0:00:57]} 20. b5 {[%emt 0:09:27]} axb5 {[%emt 0:02:15]} 21. cxb5 {[%emt 0:00:07]} c5 $1 {[%emt 0:01:18]} 22. Nd5 {[%emt 0:11:18]} (22. Bd5 $14 Bxd5 23. Nxd5) 22... b6 {[%emt 0:03:06]} 23. Nc4 {[%emt 0:02:31]} Rf7 {[%emt 0:02:21]} 24. Qd2 {[%emt 0:02:03]} Bf8 $2 {[%emt 0:01:45] [#]} (24... f4 $15 {keeps the upper hand.} 25. Nc3 e4) 25. a5 $1 {[%emt 0:01:43]} bxa5 {[%emt 0:04:12]} 26. Nxa5 {[%emt 0:00:37]} Qc8 {[%emt 0:03:43]} 27. Nc6 {[%emt 0:01:57]} Rb7 {[%emt 0:00:33]} 28. b6 {[%emt 0:00:53]} Bxd5 {[%emt 0:08:11]} ({Wrong is} 28... Qxc6 $2 {[#]} 29. Ne7+ $1 {[%mdl 576] Discovered Attack} Rxe7 30. Bxc6 $18) 29. Bxd5 {[%emt 0:00:03]} Nxb6 {[%emt 0:00:08]} 30. Bxf7+ {[%emt 0:03:54]} Kxf7 {[%emt 0:00:02]} 31. Na5 {[%emt 0:00:33]} Rb8 {[%emt 0:01:00]} 32. Rb3 {[%emt 0:09:46]} Nd7 {[%emt 0:02:36]} 33. Rcb1 {[%emt 0:01:06]} Rxb3 {[%emt 0:00:36]} 34. Rxb3 {[%emt 0:00:27]} Nef6 {[%emt 0:03:14]} 35. e4 {[%emt 0:02:19]} f4 {[%emt 0:04:33]} (35... fxe4 $11 36. dxe4 Qa6) 36. f3 {[%emt 0:00:57]} Be7 {[%emt 0:00:32]} 37. Qa2 {[%emt 0:00:49]} Kg6 {[%emt 0:02:35]} 38. Nc4 {[%emt 0:00:23]} ({But not} 38. Rb7 $6 Bd8 $14) 38... Nf8 {[%emt 0:00:45]} (38... Kh7 $16 39. Bc1 Qg8) 39. Rb6 $2 {[%emt 0:00:25]} N8d7 $1 $11 {[%emt 0:02:07]} 40. Rb1 $2 {[%emt 0:00:00]} (40. Nxd6 {[%csl Gd6][%cal Ra2f7]} Qf8 41. Rc6) 40... Nf8 {[%emt 0:00:00]} (40... Qa8 $142 41. Qe2 h5) 41. Rb6 {[%emt 0:08:02]} (41. gxf4 $18 gxf4 {[#]} 42. d4 $1 {[%mdl 512]} exd4 43. e5) 41... Qe6 $2 {[%emt 0:09:47]} 42. Qb2 {[%emt 0:07:07]} (42. gxf4 $18 gxf4 43. Qf2 (43. Bxc5 N6d7 $16)) 42... N8d7 {[%emt 0:03:12]} 43. Ra6 {[%emt 0:00:17]} h5 {[%emt 0:03:32]} 44. Qf2 {[%emt 0:01:24]} (44. Qa2 $18 g4 45. Bb2) 44... Nb8 {[%emt 0:05:40]} 45. Rb6 {[%emt 0:01:50]} Nbd7 {[%emt 0:00:01]} 46. Rb5 {[%emt 0:00:52]} Qh3 {[%emt 0:08:51]} 47. Qg2 {[%emt 0:03:11]} Qe6 {[%emt 0:00:35]} 48. Bc1 {[%emt 0:02:03]} fxg3 {[%emt 0:07:48]} 49. Qxg3 {[%emt 0:00:46]} g4 {[%emt 0:01:37]} 50. Ne3 {[%emt 0:04:01]} Bf8 {[%emt 0:04:16]} 51. Nf5 {[%emt 0:02:47]} (51. fxg4 $16 hxg4 52. Rb2) 51... c4 {[%emt 0:02:58]} 52. fxg4 {[%emt 0:02:24]} hxg4 {[%emt 0:00:12]} 53. Qe3 {[%emt 0:00:42]} cxd3 {[%emt 0:00:21]} 54. Qg5+ {[%emt 0:01:21]} Kf7 {[%emt 0:00:01]} 55. Nh4 {[%emt 0:00:26] [#]} Nxe4 (55... Qc4 $1 $17 {[%cal Rc4b5]} 56. Rb1 (56. Qg6+ $2 Ke7 $19) 56... Qxe4) 56. Qh5+ Kg7 57. Nf5+ Kf6 58. Qg6+ $19 {[%mdl 8192]} (58. Ne3 $11) 1/2-1/2

[Event "AZE-ch Women 2019"]
[Site "Baku"]
[Date "2019.02.07"]
[Round "4.9"]
[White "Jafarova, Aysel"]
[Black "Hajiyeva, Altunay"]
[Result "1-0"]
[ECO "D45"]
[WhiteElo "1376"]
[BlackElo "1315"]
[Annotator "NA RC"]
[PlyCount "81"]
[EventDate "2019.02.04"]
[EventType "swiss"]
[EventCountry "AZE"]
[SourceTitle "playchess.com"]
[Source "ChessBase"]
[SourceQuality "1"]
[TimeControl "40/5400+30:1800+30"]

1. d4 {[%emt 0:00:00]} d5 {[%emt 0:00:00]} 2. Nf3 {[%emt 0:00:00]} e6 {[%emt 0:00:06]} 3. c4 {[%emt 0:00:00]} c6 {[%emt 0:00:08]} 4. Nc3 {[%emt 0:00:00]} Nf6 {[%emt 0:00:06]} 5. e3 {[%emt 0:00:00]} Nbd7 {[%emt 0:00:26]} 6. Qc2 {[%emt 0:00:05]} Bd6 {[%emt 0:01:57]} 7. Bd3 {[%emt 0:02:32]} e5 {[%emt 0:12:54]} 8. cxd5 {[%emt 0:16:12]} Nxd5 {[%emt 0:13:43]} 9. Nxd5 {[%emt 0:11:17]} cxd5 {[%emt 0:03:23]} 10. e4 {[%emt 0:05:36]} h6 {[%emt 0:13:22]} 11. O-O {[%emt 0:04:30]} dxe4 {[%emt 0:10:59]} 12. Bxe4 {[%emt 0:00:12]} O-O {[%emt 0:11:07]} 13. Rd1 {[%emt 0:04:30]} Qe7 {[%emt 0:05:07]} 14. Re1 {[%emt 0:03:43]} Qf6 {[%emt 0:04:15]} 15. Be3 {[%emt 0:02:49]} Re8 {[%emt 0:04:41]} 16. a3 {[%emt 0:08:42]} a6 17. Rad1 {[%emt 0:01:25]} Qe7 {[%emt 0:12:14]} 18. Bf4 {[%emt 0:02:58]} Kh8 {[%emt 0:01:23]} 19. Bg3 {[%emt 0:02:24]} f6 {[%emt 0:02:03]} 20. Nh4 {[%emt 0:01:02]} Nf8 {[%emt 0:00:53]} 21. h3 {[%emt 0:11:25]} Bd7 {[%emt 0:00:34]} 22. Qd2 {[%emt 0:01:25]} Rab8 {[%emt 0:00:31]} 23. dxe5 {[%emt 0:01:05]} Bxe5 {[%emt 0:00:14]} 24. f4 {[%emt 0:02:20]} Red8 {[%emt 0:01:11]} 25. Bd5 {[%emt 0:07:00]} Be6 {[%emt 0:00:14]} 26. fxe5 {[%emt 0:00:12]} Rxd5 {[%emt 0:00:19]} 27. Qe3 {[%emt 0:00:48]} Rbd8 {[%emt 0:00:41]} 28. Rxd5 {[%emt 0:00:17]} Rxd5 {[%emt 0:00:29]} 29. exf6 {[%emt 0:00:31]} Qxf6 {[%emt 0:00:02]} 30. Rf1 {[%emt 0:00:16]} Qe7 {[%emt 0:00:36]} 31. Rxf8+ {[%emt 0:00:17]} Kh7 {[%emt 0:01:13]} 32. Qe4+ {[%emt 0:00:20]} Rf5 {[%emt 0:00:19]} 33. Rxf5 {[%emt 0:00:16]} g6 {[%emt 0:00:38]} 34. Re5 {[%emt 0:00:13]} Qf8 {[%emt 0:00:37]} 35. Qxg6+ {[%emt 0:00:16]} Kh8 {[%emt 0:00:16]} 36. Rxe6 {[%emt 0:00:16]} Qc5+ {[%emt 0:00:11]} 37. Kh2 {[%emt 0:00:07]} Qf8 {[%emt 0:00:35]} 38. Re8 {[%emt 0:00:07]} Qxe8 {[%emt 0:00:09]} 39. Qxe8+ {[%emt 0:00:07]} Kh7 {[%emt 0:00:13]} 40. Qf7+ {[%emt 0:00:00]} Kh8 {[%emt 0:00:00]} 41. Ng6# {[%emt 0:00:08]} 1-0

[Event "AZE-ch Women 2019"]
[Site "Baku"]
[Date "2019.02.09"]
[Round "6.1"]
[White "Beydullayeva, Govhar"]
[Black "Mammadzada, Gunay"]
[Result "0-1"]
[ECO "D10"]
[WhiteElo "2239"]
[BlackElo "2422"]
[Annotator "NA"]
[PlyCount "82"]
[EventDate "2019.02.04"]
[EventType "swiss"]
[EventCountry "AZE"]
[SourceTitle "playchess.com"]
[Source "ChessBase"]
[SourceQuality "1"]
[TimeControl "40/5400+30:1800+30"]

1. d4 {[%emt 0:00:00]} d5 {[%emt 0:00:00]} 2. c4 {[%emt 0:00:26]} c6 3. Nc3 {[%emt 0:00:30]} Nf6 {[%emt 0:00:09]} 4. e3 {[%emt 0:00:34]} g6 {[%emt 0:01:06]} 5. Bd3 {[%emt 0:01:08]} Bg7 {[%emt 0:01:15]} 6. h3 {[%emt 0:00:57]} O-O {[%emt 0:00:28]} 7. Nf3 {[%emt 0:00:02]} c5 {[%emt 0:01:24]} 8. O-O {[%emt 0:04:23]} cxd4 {[%emt 0:02:08]} 9. exd4 {[%emt 0:01:52]} Nc6 {[%emt 0:03:51]} 10. a3 {[%emt 0:04:22] D94: Grünfeld: 4 Nf3 Bg7 5 e3} b6 {[%emt 0:11:46]} 11. Bg5 {[%emt 0:21:08]} Be6 {[%emt 0:18:53]} 12. cxd5 {[%emt 0:17:37]} Nxd5 $146 {[%emt 0:03:47]} ({Predecessor:} 12... Bxd5 13. Ne5 Nxd4 14. Qa4 Bb3 15. Qa6 Nd7 16. Nxd7 Qxd7 17. Rfe1 e6 {0-1 (28) Nagimov,A (2259)-Kamsky,G (2670) Kazan 2016}) 13. Qa4 {[%emt 0:08:43]} Nxc3 {[%emt 0:21:32]} 14. bxc3 {[%emt 0:01:04]} Na5 {[%emt 0:02:57]} 15. Qb4 {[%emt 0:06:46]} Re8 {[%emt 0:01:20]} 16. Rfe1 {[%emt 0:02:03]} Qd6 {[%emt 0:01:28]} 17. Bb5 {[%emt 0:01:18]} Rec8 {[%emt 0:03:12]} 18. Bxe7 {[%emt 0:07:32]} Qd5 {[%emt 0:00:40]} 19. Ne5 {[%emt 0:11:04]} Qb3 {[%emt 0:01:35]} 20. Re3 {[%emt 0:04:59]} Bh6 {[%emt 0:02:02]} 21. Rd3 {[%emt 0:00:19]} Rc7 {[%emt 0:12:30]} 22. Bd6 {[%emt 0:01:24]} Rcc8 {[%emt 0:01:00]} 23. Qxb3 {[%emt 0:00:46]} Nxb3 {[%emt 0:00:02]} 24. Rad1 {[%emt 0:01:32]} Bf5 {[%emt 0:03:55]} 25. Rf3 {[%emt 0:00:09]} Nd2 {[%emt 0:03:22]} 26. Rxf5 {[%emt 0:00:04]} gxf5 {[%emt 0:00:01]} 27. Nc6 {[%emt 0:02:04]} Ne4 {[%emt 0:02:34]} 28. Ne7+ {[%emt 0:00:21]} Kh8 {[%emt 0:00:12]} 29. Nxf5 {[%emt 0:00:38]} Bg5 {[%emt 0:00:42] [#]} (29... Nxd6 $15 30. Nxd6 Rxc3) 30. h4 {[%emt 0:00:32]} (30. Ba6 $1 $16) 30... Bf6 {[%emt 0:00:11]} (30... Bxh4 $5 31. Rd3 Bf6 $17) 31. Ba6 {[%emt 0:00:36]} Nxc3 {[%emt 0:00:50]} 32. Rd3 {[%emt 0:00:27]} Ne2+ $11 {[%emt 0:00:14]} 33. Kf1 {[%emt 0:00:30]} Rc2 {[%emt 0:00:39]} 34. d5 {[%emt 0:00:31]} Nc3 {[%emt 0:00:31]} 35. g4 {[%emt 0:00:27]} Ne4 {[%emt 0:00:29]} 36. Bb4 {[%emt 0:00:35]} Nxf2 {[%emt 0:00:29]} 37. Rf3 {[%emt 0:00:12]} Nxg4 {[%emt 0:00:05]} 38. Kg1 {[%emt 0:00:31]} Rg8 {[%emt 0:00:21]} 39. d6 {[%emt 0:00:46]} Ne3+ {[%emt 0:01:08]} 40. Ng3 {[%emt 0:00:00]} Rg2+ {[%emt 0:00:00]} 41. Kh1 {[%emt 0:00:34]} R2xg3 {[%emt 0:01:12]} 0-1

[Event "AZE-ch Women 2019"]
[Site "Baku"]
[Date "2019.02.09"]
[Round "6.2"]
[White "Balajayeva, Khanim"]
[Black "Mamedjarova, Turkan"]
[Result "1-0"]
[ECO "C87"]
[WhiteElo "2397"]
[BlackElo "2267"]
[Annotator "NA"]
[PlyCount "130"]
[EventDate "2019.02.04"]
[EventType "swiss"]
[EventCountry "AZE"]
[SourceTitle "playchess.com"]
[Source "ChessBase"]
[SourceQuality "1"]
[TimeControl "40/5400+30:1800+30"]

1. e4 e5 2. Nf3 {[%emt 0:00:00]} Nc6 {[%emt 0:01:42]} 3. Bb5 {[%emt 0:00:00]} a6 {[%emt 0:00:13]} 4. Ba4 {[%emt 0:00:00]} Nf6 {[%emt 0:00:19]} 5. O-O {[%emt 0:00:00]} d6 {[%emt 0:06:58]} 6. Re1 {[%emt 0:09:56]} Be7 {[%emt 0:04:41]} 7. c3 {[%emt 0:01:14]} Bg4 {[%emt 0:05:34]} 8. Bxc6+ {[%emt 0:06:00]} bxc6 {[%emt 0:00:10]} 9. d4 {[%emt 0:00:42] C87: Closed Ruy Lopez: Steinitz-type lines after 6 Re1 d6} Nd7 {[%emt 0:05:21]} 10. h3 {[%emt 0:02:53]} (10. Nbd2 exd4 11. cxd4 O-O 12. Qc2 c5 13. b3 cxd4 14. Nxd4 Bf6 15. Bb2 c5 16. Nc6 Qc7 17. Nb4 Be6 18. Bxf6 Nxf6 19. Nd3 a5 20. Nc4 Rfe8 21. Nf4 a4 22. Rad1 axb3 {½-½ (22) Draganic,V (2263)-Blagojevic,D (2499) Cetinje 2010}) 10... Bxf3 {[%emt 0:02:00]} 11. Qxf3 {[%emt 0:00:04]} Bg5 $146 {[%emt 0:11:36]} ({Predecessor:} 11... O-O 12. Nd2 c5 13. d5 g6 14. g4 Bg5 15. Nf1 Kg7 16. Re2 Rh8 {½-½ (42) Hodges,A-Showalter,J Cambridge Springs 1904}) 12. Na3 {[%emt 0:07:52]} Bxc1 {[%emt 0:03:07]} 13. Raxc1 {[%emt 0:00:03]} Qg5 {[%emt 0:01:40]} 14. Nc4 {[%emt 0:05:19]} O-O {[%emt 0:02:41]} 15. b4 {[%emt 0:02:24]} Rae8 {[%emt 0:07:47]} 16. Qg4 {[%emt 0:12:42]} Qxg4 {[%emt 0:14:40]} 17. hxg4 {[%emt 0:00:37]} f6 {[%emt 0:04:03]} 18. Na5 {[%emt 0:04:28]} Nb8 {[%emt 0:00:22]} 19. f3 {[%emt 0:00:54]} Kf7 {[%emt 0:01:16]} 20. Kf2 {[%emt 0:02:17]} Ke7 {[%emt 0:03:37]} 21. Rcd1 {[%emt 0:03:30]} Rc8 {[%emt 0:02:09]} 22. g3 {[%emt 0:00:49]} Rh8 {[%emt 0:01:18]} 23. Rh1 {[%emt 0:01:39]} h6 {[%emt 0:00:54]} 24. f4 {[%emt 0:01:52]} Rhe8 $16 {[%emt 0:01:54]} 25. Kf3 {[%emt 0:10:36]} Kf7 {[%emt 0:01:58]} 26. Rh5 {[%emt 0:01:10]} Re7 {[%emt 0:01:01]} 27. dxe5 {[%emt 0:07:48]} dxe5 {[%emt 0:00:29]} 28. fxe5 {[%emt 0:00:04]} Rxe5 {[%emt 0:01:05]} 29. Rxe5 {[%emt 0:00:03]} fxe5 {[%emt 0:00:01]} 30. Nb3 {[%emt 0:01:29]} Ke7 {[%emt 0:00:24]} 31. Nc5 {[%emt 0:00:03]} Rf8+ {[%emt 0:00:28]} 32. Ke2 {[%emt 0:00:54]} Rf6 {[%emt 0:01:19]} 33. Rf1 {[%emt 0:01:06]} Rg6 {[%emt 0:08:18]} 34. Rf5 {[%emt 0:00:55]} Rxg4 {[%emt 0:00:16]} 35. Rxe5+ {[%emt 0:02:23]} Kf7 {[%emt 0:00:09]} 36. Rf5+ {[%emt 0:02:56]} Ke7 {[%emt 0:00:09]} 37. Kf3 {[%emt 0:00:22]} Rg6 {[%emt 0:00:07]} 38. e5 {[%emt 0:00:28]} Nd7 {[%emt 0:00:37]} 39. Nxa6 {[%emt 0:01:54]} c5 {[%emt 0:03:54]} 40. b5 {[%emt 0:00:00]} c6 {[%emt 0:00:00]} 41. b6 {[%emt 0:04:48]} Nxb6 {[%emt 0:05:19]} 42. Nxc5 {[%emt 0:00:15]} Nd7 {[%emt 0:04:36]} 43. Nxd7 {[%emt 0:05:46]} Kxd7 {[%emt 0:00:04]} 44. Rf8 {[%emt 0:05:05]} h5 {[%emt 0:05:29]} 45. a4 {[%emt 0:08:27]} c5 {[%emt 0:05:33]} 46. Ra8 {[%emt 0:11:20]} Rg5 {[%emt 0:00:42]} 47. Kf4 {[%emt 0:00:17]} Rg4+ {[%emt 0:00:11]} 48. Kf5 {[%emt 0:00:06]} Rxg3 {[%emt 0:00:12]} 49. a5 {[%emt 0:02:22]} Rf3+ {[%emt 0:05:32]} 50. Kg6 {[%emt 0:01:52]} Rg3+ {[%emt 0:04:07]} 51. Kf7 {[%emt 0:00:44]} Rf3+ {[%emt 0:00:07]} 52. Kxg7 {[%emt 0:01:39]} Rxc3 {[%emt 0:01:03]} 53. a6 {[%emt 0:01:58]} c4 {[%emt 0:01:35]} 54. a7 {[%emt 0:00:24]} Ra3 {[%emt 0:00:39]} 55. Kf7 {[%emt 0:00:44]} Rf3+ {[%emt 0:02:44]} 56. Kg6 {[%emt 0:00:04]} Ra3 {[%emt 0:00:09]} 57. Kf6 {[%emt 0:01:40]} Rf3+ {[%emt 0:00:50]} 58. Kg5 {[%emt 0:00:03]} Ra3 {[%emt 0:00:17]} 59. Kf4 {[%emt 0:01:05]} c3 {[%emt 0:03:59]} 60. Ke3 {[%emt 0:00:03]} c2+ {[%emt 0:00:40]} 61. Kd2 {[%emt 0:00:03]} h4 {[%emt 0:00:31]} 62. Rh8 {[%emt 0:00:50]} Ke6 {[%emt 0:00:06]} 63. a8=Q {[%emt 0:00:11]} Rxa8 {[%emt 0:00:06]} 64. Rxa8 {[%emt 0:00:02]} Kxe5 {[%emt 0:00:06]} 65. Rh8 {[%emt 0:00:02]} Kd5 1-0

[Event "AZE-ch Women 2019"]
[Site "Baku"]
[Date "2019.02.09"]
[Round "6.4"]
[White "Allahverdiyeva, Ayan"]
[Black "Abdulla, Khayala"]
[Result "1/2-1/2"]
[ECO "B28"]
[WhiteElo "2051"]
[BlackElo "2243"]
[Annotator "NA"]
[PlyCount "68"]
[EventDate "2019.02.04"]
[EventType "swiss"]
[EventCountry "AZE"]
[SourceTitle "playchess.com"]
[Source "ChessBase"]
[SourceQuality "1"]
[TimeControl "40/5400+30:1800+30"]

1. e4 {[%emt 0:01:12]} c5 {[%emt 0:00:00]} 2. Nf3 {[%emt 0:00:05]} a6 {[%emt 0:00:00]} 3. Nc3 {[%emt 0:00:40]} b5 {[%emt 0:00:00]} 4. d4 {[%emt 0:01:18]} cxd4 5. Nxd4 {[%emt 0:00:05]} Bb7 {[%emt 0:00:11]} 6. a3 {[%emt 0:01:08]} e6 {[%emt 0:00:31]} 7. g3 {[%emt 0:09:42]} Nf6 {[%emt 0:06:56]} 8. Bg2 {[%emt 0:01:18]} b4 {[%emt 0:05:57] B43: Sicilian: Kan Variation: 5 Nc3} (8... d6 $11) 9. axb4 {[%emt 0:03:20]} Bxb4 {[%emt 0:00:03] LiveBook: 6 Games} 10. O-O {[%emt 0:04:49]} h6 $146 {[%emt 0:21:02]} (10... O-O $14) ({Predecessor:} 10... d6 11. Bg5 Nbd7 12. e5 Bxg2 13. exf6 gxf6 14. Qh5 Bxc3 15. Nxe6 Qe7 16. Ng7+ {½-½ (47) Lopez Silva,H (2399)-Flores,D (2609) Antofagasta 2019}) 11. e5 {[%emt 0:05:46] Discovered Attack} Bxg2 {[%emt 0:01:41]} 12. Kxg2 {[%emt 0:00:55]} Bxc3 {[%emt 0:03:43]} 13. bxc3 {[%emt 0:00:51]} Nd5 {[%emt 0:00:54]} 14. Qg4 {[%emt 0:06:25]} g6 {[%emt 0:03:00]} 15. Qf3 {[%emt 0:20:30]} Qb6 {[%emt 0:23:28]} 16. Ba3 $16 {[%emt 0:21:19]} Nc6 {[%emt 0:03:39]} 17. Rfe1 {[%emt 0:05:22]} Na5 {[%emt 0:08:47]} 18. Reb1 {[%emt 0:03:02]} Qd8 {[%emt 0:03:28]} 19. Qd3 {[%emt 0:05:43]} Qc8 {[%emt 0:02:06]} 20. Bb4 {[%emt 0:03:15]} Nc4 {[%emt 0:01:39]} 21. Nf3 {[%emt 0:02:22]} a5 {[%emt 0:02:50]} 22. Bd6 {[%emt 0:01:00]} Nxd6 {[%emt 0:04:16]} 23. exd6 {[%emt 0:00:04]} O-O {[%emt 0:00:25]} 24. c4 {[%emt 0:00:19]} Nb4 {[%emt 0:01:17]} 25. Qe2 {[%emt 0:00:48]} Qc5 {[%emt 0:02:27]} 26. c3 {[%emt 0:00:45]} Nc6 {[%emt 0:00:02]} 27. Qd3 {[%emt 0:00:45]} Na7 {[%emt 0:04:05]} 28. Rb7 {[%emt 0:00:33]} Nc8 {[%emt 0:00:47]} 29. Rxd7 {[%emt 0:00:28]} Qc6 {[%emt 0:00:20]} 30. Rc7 {[%emt 0:00:19]} Qxd6 {[%emt 0:00:08]} 31. Qxd6 {[%emt 0:00:19]} Nxd6 {[%emt 0:00:01]} 32. Ra4 {[%emt 0:00:38]} Ne4 {[%emt 0:00:30]} 33. Ra3 {[%emt 0:00:16]} Rfb8 {[%emt 0:00:54]} 34. Ne5 {[%emt 0:00:41]} Nd6 {[%emt 0:01:05]} 1/2-1/2